[Event "Titled Tuesday Blitz August 17 2021"]
[White "Grachev, Boris"]
[Black "Preotu, Razvan"]
[WhiteFideId "4129199"]
[BlackFideId "2613280"]
[WhiteElo "2580"]
[BlackElo "2407"]
[Result "1-0"]
[Round "08"]
[TimeControl "180+1"]
[Date "2021.08.17"]
[WhiteClock "0:00:11"]
[BlackClock "0:00:15"]

1. d4 {[%clk 0:03:00]}  Nf6 {[%clk 0:02:59]} 2. Bf4 {[%clk 0:03:00]}  d5 {[%clk 0:02:58]} 3. e3 {[%clk 0:03:00]}  c5 {[%clk 0:02:57]} 4. c3 {[%clk 0:03:00]}  Nc6 {[%clk 0:02:46]} 5. Nd2 {[%clk 0:02:59]}  Bf5 {[%clk 0:02:43]} 6. Ngf3 {[%clk 0:02:56]}  e6 {[%clk 0:02:42]} 7. Nh4 {[%clk 0:02:54]}  Bg4 {[%clk 0:02:23]} 8. Qb3 {[%clk 0:02:53]}  Qd7 {[%clk 0:02:13]} 9. h3 {[%clk 0:02:52]}  Bh5 {[%clk 0:02:12]} 10. g4 {[%clk 0:02:52]}  Bg6 {[%clk 0:02:12]} 11. Nxg6 {[%clk 0:02:51]}  hxg6 {[%clk 0:02:13]} 12. Bg2 {[%clk 0:02:51]}  cxd4 {[%clk 0:02:07]} 13. exd4 {[%clk 0:02:50]}  Bd6 {[%clk 0:02:07]} 14. Bxd6 {[%clk 0:02:35]}  Qxd6 {[%clk 0:02:07]} 15. Qxb7 {[%clk 0:02:35]}  Rb8 {[%clk 0:02:07]} 16. Nc4 {[%clk 0:02:31]}  Qd7 {[%clk 0:01:35]} 17. Qxd7+ {[%clk 0:02:30]}  Nxd7 {[%clk 0:01:34]} 18. O-O-O {[%clk 0:01:58]}  Nb4 {[%clk 0:00:58]} 19. cxb4 {[%clk 0:01:33]}  dxc4 {[%clk 0:00:58]} 20. a3 {[%clk 0:01:33]}  Ke7 {[%clk 0:00:52]} 21. d5 {[%clk 0:01:30]}  e5 {[%clk 0:00:51]} 22. d6+ {[%clk 0:01:30]}  Kf6 {[%clk 0:00:51]} 23. Rhe1 {[%clk 0:01:26]}  Rhd8 {[%clk 0:00:48]} 24. Bc6 {[%clk 0:01:19]}  Rb6 {[%clk 0:00:47]} 25. Bxd7 {[%clk 0:01:03]}  Rxd7 {[%clk 0:00:48]} 26. Rd5 {[%clk 0:01:03]}  Rbxd6 {[%clk 0:00:46]} 27. Rdxe5 {[%clk 0:01:03]}  g5 {[%clk 0:00:42]} 28. Rc5 {[%clk 0:00:54]}  Kg6 {[%clk 0:00:19]} 29. Rxc4 {[%clk 0:00:50]}  Rd3 {[%clk 0:00:20]} 30. Rc3 {[%clk 0:00:45]}  Rd2 {[%clk 0:00:20]} 31. Rf3 {[%clk 0:00:37]}  f6 {[%clk 0:00:20]} 32. Kb1 {[%clk 0:00:32]}  a6 {[%clk 0:00:19]} 33. Ka2 {[%clk 0:00:17]}  Rc7 {[%clk 0:00:19]} 34. Kb3 {[%clk 0:00:16]}  Rcc2 {[%clk 0:00:18]} 35. Rb1 {[%clk 0:00:15]}  Rxf2 {[%clk 0:00:16]} 36. Rxf2 {[%clk 0:00:16]}  Rxf2 {[%clk 0:00:16]} 37. Ka4 {[%clk 0:00:17]}  Rh2 {[%clk 0:00:14]} 38. Ka5 {[%clk 0:00:16]}  Rxh3 {[%clk 0:00:14]} 39. Kxa6 {[%clk 0:00:17]}  Rg3 {[%clk 0:00:12]} 40. b5 {[%clk 0:00:16]}  Rxg4 {[%clk 0:00:13]} 41. b6 {[%clk 0:00:16]}  Rh4 {[%clk 0:00:13]} 42. b7 {[%clk 0:00:15]}  Rh8 {[%clk 0:00:14]} 43. Ka7 {[%clk 0:00:15]}  f5 {[%clk 0:00:14]} 44. b8=Q {[%clk 0:00:15]}  Rxb8 {[%clk 0:00:15]} 45. Kxb8 {[%clk 0:00:16]}  f4 {[%clk 0:00:15]} 46. b4 {[%clk 0:00:15]}  g4 {[%clk 0:00:15]} 47. b5 {[%clk 0:00:16]}  f3 {[%clk 0:00:16]} 48. b6 {[%clk 0:00:12]}  g3 {[%clk 0:00:16]} 49. b7 {[%clk 0:00:13]}  f2 {[%clk 0:00:15]} 50. Ka8 {[%clk 0:00:11]}  g2 {[%clk 0:00:15]} 51. b8=Q {[%clk 0:00:11]}  g1=Q {[%clk 0:00:16]} 52. Qb6+ {[%clk 0:00:11]}  Kh7 {[%clk 0:00:15]} 53. Rxg1 {[%clk 0:00:11]} 1-0


[Site "https://www.chess.com"]

[Event "Titled Tuesday Blitz August 17 2021"]
[White "Green, Andrew D"]
[Black "Estrada Nieto, Julian"]
[WhiteFideId "2401762"]
[BlackFideId "5101018"]
[WhiteElo "2159"]
[BlackElo "2270"]
[Result "1-0"]
[Round "08"]
[TimeControl "180+1"]
[Date "2021.08.18"]
[WhiteClock "0:00:15"]
[BlackClock "0:00:06"]

1. d4 {[%clk 0:03:00]}  Nf6 {[%clk 0:02:58]} 2. Nf3 {[%clk 0:03:00]}  e6 {[%clk 0:02:57]} 3. Bf4 {[%clk 0:03:00]}  d5 {[%clk 0:02:57]} 4. e3 {[%clk 0:03:00]}  c5 {[%clk 0:02:56]} 5. Nbd2 {[%clk 0:02:57]}  Nc6 {[%clk 0:02:57]} 6. c3 {[%clk 0:02:57]}  Bd6 {[%clk 0:02:53]} 7. Bg3 {[%clk 0:02:56]}  O-O {[%clk 0:02:52]} 8. Bd3 {[%clk 0:02:55]}  Qe7 {[%clk 0:02:49]} 9. Ne5 {[%clk 0:02:54]}  Nd7 {[%clk 0:02:46]} 10. Nxd7 {[%clk 0:02:52]}  Qxd7 {[%clk 0:02:43]} 11. Bxd6 {[%clk 0:02:37]}  Qxd6 {[%clk 0:02:43]} 12. dxc5 {[%clk 0:02:38]}  Qxc5 {[%clk 0:02:42]} 13. O-O {[%clk 0:02:37]}  Ne5 {[%clk 0:02:35]} 14. Bc2 {[%clk 0:02:36]}  b6 {[%clk 0:02:35]} 15. Bxh7+ {[%clk 0:02:27]}  Kxh7 {[%clk 0:02:32]} 16. Qh5+ {[%clk 0:02:26]}  Kg8 {[%clk 0:02:32]} 17. Qxe5 {[%clk 0:02:26]}  Ba6 {[%clk 0:02:29]} 18. Rfe1 {[%clk 0:02:23]}  Bd3 {[%clk 0:02:19]} 19. Qd4 {[%clk 0:02:21]}  Qxd4 {[%clk 0:02:18]} 20. exd4 {[%clk 0:02:20]}  b5 {[%clk 0:02:16]} 21. Re3 {[%clk 0:02:03]}  Bg6 {[%clk 0:02:15]} 22. a3 {[%clk 0:01:33]}  a5 {[%clk 0:02:15]} 23. Nb3 {[%clk 0:01:26]}  b4 {[%clk 0:02:09]} 24. cxb4 {[%clk 0:01:23]}  axb4 {[%clk 0:02:08]} 25. a4 {[%clk 0:01:23]}  Bc2 {[%clk 0:01:53]} 26. Nc5 {[%clk 0:01:23]}  Ra5 {[%clk 0:01:48]} 27. b3 {[%clk 0:01:11]}  Rc8 {[%clk 0:01:38]} 28. Rc1 {[%clk 0:01:08]}  Bg6 {[%clk 0:01:31]} 29. Ree1 {[%clk 0:00:59]}  Ra7 {[%clk 0:01:21]} 30. f4 {[%clk 0:00:58]}  Bf5 {[%clk 0:01:19]} 31. Kf2 {[%clk 0:00:58]}  Rac7 {[%clk 0:01:06]} 32. h3 {[%clk 0:00:57]}  Bg6 {[%clk 0:01:02]} 33. g4 {[%clk 0:00:56]}  Kf8 {[%clk 0:00:57]} 34. Ke3 {[%clk 0:00:51]}  Be4 {[%clk 0:00:53]} 35. Kd2 {[%clk 0:00:48]}  Bg2 {[%clk 0:00:43]} 36. h4 {[%clk 0:00:48]}  Bf3 {[%clk 0:00:43]} 37. g5 {[%clk 0:00:48]}  Bg4 {[%clk 0:00:42]} 38. Na6 {[%clk 0:00:43]}  Rc3 {[%clk 0:00:24]} 39. Nxb4 {[%clk 0:00:36]}  Rxc1 {[%clk 0:00:24]} 40. Rxc1 {[%clk 0:00:37]}  Rb8 {[%clk 0:00:24]} 41. Kc3 {[%clk 0:00:35]}  Bf5 {[%clk 0:00:20]} 42. Nc6 {[%clk 0:00:23]}  Rc8 {[%clk 0:00:18]} 43. Kb4 {[%clk 0:00:23]}  Ke8 {[%clk 0:00:17]} 44. Kc5 {[%clk 0:00:20]}  f6 {[%clk 0:00:17]} 45. b4 {[%clk 0:00:19]}  Bd3 {[%clk 0:00:14]} 46. b5 {[%clk 0:00:18]}  Kd7 {[%clk 0:00:12]} 47. Rd1 {[%clk 0:00:17]}  Bc2 {[%clk 0:00:11]} 48. Ra1 {[%clk 0:00:17]}  Kc7 {[%clk 0:00:06]} 49. a5 {[%clk 0:00:16]}  Kb7 {[%clk 0:00:05]} 50. a6+ {[%clk 0:00:16]}  Ka8 {[%clk 0:00:06]} 51. b6 {[%clk 0:00:15]} 1-0


[Site "https://www.chess.com"]

[Event "Titled Tuesday Blitz August 17 2021"]
[White "Hambleton, Aman"]
[Black "Gerzhoy, Leonid"]
[WhiteFideId "2606577"]
[BlackFideId "2806126"]
[WhiteElo "2552"]
[BlackElo "2539"]
[Result "1/2-1/2"]
[Round "08"]
[TimeControl "180+1"]
[Date "2021.08.17"]
[WhiteClock "0:00:04"]
[BlackClock "0:00:16"]

1. d4 {[%clk 0:03:00]}  Nf6 {[%clk 0:02:58]} 2. Bf4 {[%clk 0:03:00]}  d6 {[%clk 0:02:57]} 3. e3 {[%clk 0:02:59]}  Nbd7 {[%clk 0:02:57]} 4. h3 {[%clk 0:02:59]}  e5 {[%clk 0:02:56]} 5. Bh2 {[%clk 0:03:00]}  Be7 {[%clk 0:02:55]} 6. c3 {[%clk 0:02:59]}  O-O {[%clk 0:02:54]} 7. Nf3 {[%clk 0:03:00]}  exd4 {[%clk 0:02:50]} 8. cxd4 {[%clk 0:03:00]}  b6 {[%clk 0:02:46]} 9. Nc3 {[%clk 0:02:59]}  Bb7 {[%clk 0:02:45]} 10. Bd3 {[%clk 0:02:56]}  Re8 {[%clk 0:02:39]} 11. O-O {[%clk 0:02:56]}  Nf8 {[%clk 0:02:39]} 12. a4 {[%clk 0:02:56]}  a6 {[%clk 0:02:37]} 13. e4 {[%clk 0:02:52]}  Ng6 {[%clk 0:02:33]} 14. Re1 {[%clk 0:02:52]}  Bf8 {[%clk 0:02:31]} 15. d5 {[%clk 0:02:48]}  c6 {[%clk 0:02:25]} 16. dxc6 {[%clk 0:02:36]}  Bxc6 {[%clk 0:02:25]} 17. Qb3 {[%clk 0:02:36]}  d5 {[%clk 0:02:14]} 18. exd5 {[%clk 0:02:30]}  Rxe1+ {[%clk 0:02:12]} 19. Rxe1 {[%clk 0:02:31]}  Nxd5 {[%clk 0:02:12]} 20. Bc4 {[%clk 0:02:25]}  Nxc3 {[%clk 0:01:52]} 21. Bxf7+ {[%clk 0:02:12]}  Kh8 {[%clk 0:01:52]} 22. Qxc3 {[%clk 0:00:40]}  Bxa4 {[%clk 0:01:51]} 23. Bg3 {[%clk 0:00:19]}  Rc8 {[%clk 0:01:34]} 24. Qe3 {[%clk 0:00:10]}  Bc5 {[%clk 0:01:30]} 25. Qe4 {[%clk 0:00:08]}  Bc6 {[%clk 0:01:29]} 26. Qg4 {[%clk 0:00:07]}  Bxf3 {[%clk 0:01:18]} 27. Qxf3 {[%clk 0:00:04]}  Qf6 {[%clk 0:01:13]} 28. Qxf6 {[%clk 0:00:03]}  gxf6 {[%clk 0:01:13]} 29. Kf1 {[%clk 0:00:03]}  Bd4 {[%clk 0:01:06]} 30. b3 {[%clk 0:00:03]}  Rc2 {[%clk 0:00:59]} 31. Bd5 {[%clk 0:00:02]}  Ne5 {[%clk 0:00:56]} 32. Rd1 {[%clk 0:00:02]}  Bc5 {[%clk 0:00:52]} 33. Bh4 {[%clk 0:00:02]}  Kg7 {[%clk 0:00:50]} 34. Be4 {[%clk 0:00:02]}  Rb2 {[%clk 0:00:47]} 35. f4 {[%clk 0:00:03]}  Ng6 {[%clk 0:00:44]} 36. Rd7+ {[%clk 0:00:03]}  Kh6 {[%clk 0:00:43]} 37. Bxf6 {[%clk 0:00:02]}  Rf2+ {[%clk 0:00:41]} 38. Ke1 {[%clk 0:00:02]}  Rxf4 {[%clk 0:00:40]} 39. Bxg6 {[%clk 0:00:01]}  Kxg6 {[%clk 0:00:35]} 40. Bc3 {[%clk 0:00:02]}  Re4+ {[%clk 0:00:30]} 41. Kd1 {[%clk 0:00:01]}  Re3 {[%clk 0:00:29]} 42. Kc2 {[%clk 0:00:01]}  Re2+ {[%clk 0:00:28]} 43. Rd2 {[%clk 0:00:02]}  Rxd2+ {[%clk 0:00:27]} 44. Bxd2 {[%clk 0:00:03]}  h5 {[%clk 0:00:26]} 45. g4 {[%clk 0:00:02]}  hxg4 {[%clk 0:00:25]} 46. hxg4 {[%clk 0:00:03]}  b5 {[%clk 0:00:24]} 47. Kd3 {[%clk 0:00:03]}  Bb6 {[%clk 0:00:22]} 48. Ke4 {[%clk 0:00:02]}  a5 {[%clk 0:00:22]} 49. Kd5 {[%clk 0:00:02]}  a4 {[%clk 0:00:22]} 50. b4 {[%clk 0:00:02]}  a3 {[%clk 0:00:20]} 51. Bc3 {[%clk 0:00:02]}  a2 {[%clk 0:00:19]} 52. Kc6 {[%clk 0:00:02]}  Be3 {[%clk 0:00:18]} 53. Kxb5 {[%clk 0:00:02]}  Bd2 {[%clk 0:00:17]} 54. Bb2 {[%clk 0:00:01]}  Bxb4 {[%clk 0:00:17]} 55. Kxb4 {[%clk 0:00:02]}  Kg5 {[%clk 0:00:16]} 56. Kb3 {[%clk 0:00:03]}  Kxg4 {[%clk 0:00:16]} 57. Kxa2 {[%clk 0:00:04]} 1/2-1/2


[Site "https://www.chess.com"]

[Event "Titled Tuesday Blitz August 17 2021"]
[White "Kalghatgi, Nikhil"]
[Black "Nazaretyan, Tigran"]
[WhiteFideId "2056496"]
[BlackFideId "24162345"]
[WhiteElo "1994"]
[BlackElo "2167"]
[Result "0-1"]
[Round "08"]
[TimeControl "180+1"]
[Date "2021.08.17"]
[WhiteClock "0:00:12"]
[BlackClock "0:00:38"]

1. d4 {[%clk 0:03:00]}  Nf6 {[%clk 0:02:58]} 2. Bg5 {[%clk 0:03:00]}  d5 {[%clk 0:02:57]} 3. Bxf6 {[%clk 0:03:00]}  exf6 {[%clk 0:02:57]} 4. e3 {[%clk 0:03:00]}  Bd6 {[%clk 0:02:57]} 5. c4 {[%clk 0:03:00]}  dxc4 {[%clk 0:02:53]} 6. Bxc4 {[%clk 0:03:01]}  O-O {[%clk 0:02:53]} 7. Nf3 {[%clk 0:03:01]}  Nd7 {[%clk 0:02:47]} 8. Nbd2 {[%clk 0:03:00]}  f5 {[%clk 0:02:47]} 9. Qc2 {[%clk 0:02:55]}  Nf6 {[%clk 0:02:45]} 10. Bd3 {[%clk 0:02:50]}  g6 {[%clk 0:02:44]} 11. a3 {[%clk 0:02:45]}  Qe7 {[%clk 0:02:42]} 12. O-O {[%clk 0:02:41]}  c6 {[%clk 0:02:38]} 13. b4 {[%clk 0:02:38]}  a5 {[%clk 0:02:37]} 14. bxa5 {[%clk 0:02:31]}  Bxa3 {[%clk 0:02:33]} 15. Nc4 {[%clk 0:02:30]}  Bb4 {[%clk 0:02:30]} 16. Rfb1 {[%clk 0:02:30]}  Be6 {[%clk 0:02:29]} 17. Nfe5 {[%clk 0:02:09]}  Nd5 {[%clk 0:02:26]} 18. Qb2 {[%clk 0:01:53]}  Bc3 {[%clk 0:02:22]} 19. Qb3 {[%clk 0:01:49]}  Bxa1 {[%clk 0:02:19]} 20. Rxa1 {[%clk 0:01:48]}  b5 {[%clk 0:02:17]} 21. Nxc6 {[%clk 0:01:44]}  Qb7 {[%clk 0:02:06]} 22. N6e5 {[%clk 0:01:20]}  Qa6 {[%clk 0:01:51]} 23. Nd2 {[%clk 0:00:53]}  Nxe3 {[%clk 0:01:42]} 24. Qxb5 {[%clk 0:00:52]}  Qxb5 {[%clk 0:01:41]} 25. Bxb5 {[%clk 0:00:53]}  Nc2 {[%clk 0:01:39]} 26. Ra4 {[%clk 0:00:49]}  Rfb8 {[%clk 0:01:38]} 27. Bd3 {[%clk 0:00:47]}  Nb4 {[%clk 0:01:21]} 28. f3 {[%clk 0:00:41]}  f6 {[%clk 0:01:17]} 29. Bc4 {[%clk 0:00:37]}  Bxc4 {[%clk 0:01:10]} 30. Nexc4 {[%clk 0:00:36]}  Ra6 {[%clk 0:01:08]} 31. Kf2 {[%clk 0:00:33]}  Nd3+ {[%clk 0:01:01]} 32. Ke3 {[%clk 0:00:32]}  Nb2 {[%clk 0:01:02]} 33. Nxb2 {[%clk 0:00:30]}  Rxb2 {[%clk 0:01:03]} 34. Nc4 {[%clk 0:00:20]}  Rxg2 {[%clk 0:01:02]} 35. d5 {[%clk 0:00:20]}  Rxh2 {[%clk 0:01:00]} 36. Kd4 {[%clk 0:00:19]}  Rc2 {[%clk 0:00:55]} 37. Kc5 {[%clk 0:00:19]}  h5 {[%clk 0:00:55]} 38. d6 {[%clk 0:00:18]}  Kf7 {[%clk 0:00:54]} 39. Kb5 {[%clk 0:00:17]}  Ra8 {[%clk 0:00:53]} 40. a6 {[%clk 0:00:14]}  h4 {[%clk 0:00:54]} 41. Nb6 {[%clk 0:00:14]}  Rd8 {[%clk 0:00:51]} 42. d7 {[%clk 0:00:13]}  h3 {[%clk 0:00:51]} 43. Rh4 {[%clk 0:00:13]}  h2 {[%clk 0:00:51]} 44. a7 {[%clk 0:00:13]}  Rb2+ {[%clk 0:00:51]} 45. Kc6 {[%clk 0:00:13]}  g5 {[%clk 0:00:47]} 46. Rh5 {[%clk 0:00:11]}  Kg6 {[%clk 0:00:47]} 47. Rh3 {[%clk 0:00:11]}  g4 {[%clk 0:00:47]} 48. fxg4 {[%clk 0:00:12]}  fxg4 {[%clk 0:00:48]} 49. Rh4 {[%clk 0:00:12]}  g3 {[%clk 0:00:48]} 50. Kc7 {[%clk 0:00:13]}  Rf8 {[%clk 0:00:44]} 51. a8=Q {[%clk 0:00:12]}  Rxa8 {[%clk 0:00:44]} 52. Nxa8 {[%clk 0:00:13]}  Rc2+ {[%clk 0:00:44]} 53. Kb8 {[%clk 0:00:12]}  Rd2 {[%clk 0:00:44]} 54. Kc8 {[%clk 0:00:13]}  Kg5 {[%clk 0:00:44]} 55. Rh7 {[%clk 0:00:12]}  Kf4 {[%clk 0:00:42]} 56. Nc7 {[%clk 0:00:12]}  g2 {[%clk 0:00:42]} 57. Ne6+ {[%clk 0:00:12]}  Kg3 {[%clk 0:00:41]} 58. Rg7+ {[%clk 0:00:12]}  Kf2 {[%clk 0:00:42]} 59. Nf4 {[%clk 0:00:10]}  h1=Q {[%clk 0:00:37]} 60. Rxg2+ {[%clk 0:00:10]}  Qxg2 {[%clk 0:00:38]} 61. Nxg2 {[%clk 0:00:11]}  Kxg2 {[%clk 0:00:38]} 62. d8=Q {[%clk 0:00:12]}  Rxd8+ {[%clk 0:00:38]} 63. Kxd8 {[%clk 0:00:12]} 0-1


[Site "https://www.chess.com"]

[Event "Titled Tuesday Blitz August 17 2021"]
[White "Kamsky, Gata"]
[Black "Abdurakhmonov, Mukhammadali"]
[WhiteFideId "2000024"]
[BlackFideId "14207346"]
[WhiteElo "2644"]
[BlackElo "2266"]
[Result "1-0"]
[Round "08"]
[TimeControl "180+1"]
[Date "2021.08.17"]
[WhiteClock "0:01:17"]
[BlackClock "0:00:01"]

1. d4 {[%clk 0:03:00]}  Nf6 {[%clk 0:02:59]} 2. Nf3 {[%clk 0:03:00]}  c5 {[%clk 0:02:59]} 3. d5 {[%clk 0:03:00]}  g6 {[%clk 0:02:56]} 4. Nc3 {[%clk 0:02:59]}  Bg7 {[%clk 0:02:56]} 5. e4 {[%clk 0:02:55]}  d6 {[%clk 0:02:56]} 6. Be2 {[%clk 0:02:52]}  O-O {[%clk 0:02:55]} 7. O-O {[%clk 0:02:52]}  Bg4 {[%clk 0:02:52]} 8. Nd2 {[%clk 0:02:52]}  Bxe2 {[%clk 0:02:52]} 9. Qxe2 {[%clk 0:02:53]}  e6 {[%clk 0:02:50]} 10. dxe6 {[%clk 0:02:50]}  fxe6 {[%clk 0:02:49]} 11. e5 {[%clk 0:02:51]}  dxe5 {[%clk 0:02:37]} 12. Nce4 {[%clk 0:02:44]}  Nc6 {[%clk 0:02:31]} 13. c3 {[%clk 0:02:44]}  Nd5 {[%clk 0:02:24]} 14. g3 {[%clk 0:02:44]}  b6 {[%clk 0:02:17]} 15. Nf3 {[%clk 0:02:30]}  Qd7 {[%clk 0:02:09]} 16. Kg2 {[%clk 0:02:28]}  Qb7 {[%clk 0:01:48]} 17. h4 {[%clk 0:02:24]}  Rad8 {[%clk 0:01:46]} 18. Bg5 {[%clk 0:02:21]}  Rd7 {[%clk 0:01:46]} 19. Rad1 {[%clk 0:02:20]}  Qc7 {[%clk 0:01:30]} 20. Nh2 {[%clk 0:02:15]}  h5 {[%clk 0:01:09]} 21. Nf3 {[%clk 0:02:14]}  Rdf7 {[%clk 0:01:08]} 22. Ng1 {[%clk 0:02:08]}  Qb8 {[%clk 0:01:06]} 23. Nh3 {[%clk 0:02:07]}  Qa8 {[%clk 0:01:02]} 24. f3 {[%clk 0:02:00]}  Qb8 {[%clk 0:01:01]} 25. Bc1 {[%clk 0:02:00]}  Rd7 {[%clk 0:00:43]} 26. Kh1 {[%clk 0:01:54]}  Qe8 {[%clk 0:00:36]} 27. Rg1 {[%clk 0:01:54]}  Nce7 {[%clk 0:00:28]} 28. g4 {[%clk 0:01:49]}  hxg4 {[%clk 0:00:28]} 29. Rxg4 {[%clk 0:01:42]}  Nf4 {[%clk 0:00:19]} 30. Bxf4 {[%clk 0:01:37]}  Rxd1+ {[%clk 0:00:18]} 31. Qxd1 {[%clk 0:01:37]}  exf4 {[%clk 0:00:19]} 32. Nxf4 {[%clk 0:01:26]}  Qf7 {[%clk 0:00:19]} 33. Ng5 {[%clk 0:01:22]}  Qf6 {[%clk 0:00:15]} 34. Ngxe6 {[%clk 0:01:21]}  Re8 {[%clk 0:00:11]} 35. Qd7 {[%clk 0:01:19]}  Ra8 {[%clk 0:00:03]} 36. h5 {[%clk 0:01:19]}  g5 {[%clk 0:00:02]} 37. Rxg5 {[%clk 0:01:19]}  Nf5 {[%clk 0:00:01]} 38. Rxf5 {[%clk 0:01:18]}  Qh4+ {[%clk 0:00:01]} 39. Kg2 {[%clk 0:01:17]} 1-0


[Site "https://www.chess.com"]

[Event "Titled Tuesday Blitz August 17 2021"]
[White "Karavaeva, Olga"]
[Black "Fernandez, Michael"]
[WhiteFideId "4124111"]
[BlackFideId "5803560"]
[WhiteElo "2105"]
[BlackElo "2110"]
[Result "1-0"]
[Round "08"]
[TimeControl "180+1"]
[Date "2021.08.18"]
[WhiteClock "0:00:28"]
[BlackClock "0:00:02"]

1. c4 {[%clk 0:02:49]}  e5 {[%clk 0:02:54]} 2. Nc3 {[%clk 0:02:48]}  Nc6 {[%clk 0:02:52]} 3. g3 {[%clk 0:02:48]}  g6 {[%clk 0:02:50]} 4. Bg2 {[%clk 0:02:48]}  Bg7 {[%clk 0:02:49]} 5. e3 {[%clk 0:02:48]}  Nge7 {[%clk 0:02:45]} 6. Nge2 {[%clk 0:02:38]}  d6 {[%clk 0:02:36]} 7. b3 {[%clk 0:02:35]}  O-O {[%clk 0:02:28]} 8. Bb2 {[%clk 0:02:35]}  Bf5 {[%clk 0:02:21]} 9. d4 {[%clk 0:02:34]}  Qd7 {[%clk 0:02:01]} 10. O-O {[%clk 0:02:27]}  Rad8 {[%clk 0:01:54]} 11. Re1 {[%clk 0:02:24]}  Bh3 {[%clk 0:01:45]} 12. Bh1 {[%clk 0:02:22]}  f5 {[%clk 0:01:39]} 13. dxe5 {[%clk 0:02:17]}  Nxe5 {[%clk 0:01:32]} 14. Qc2 {[%clk 0:02:11]}  c6 {[%clk 0:01:11]} 15. Rad1 {[%clk 0:02:09]}  Bg4 {[%clk 0:00:58]} 16. f4 {[%clk 0:01:58]}  Nf3+ {[%clk 0:00:54]} 17. Bxf3 {[%clk 0:01:55]}  Bxf3 {[%clk 0:00:55]} 18. Rd2 {[%clk 0:01:55]}  Qe6 {[%clk 0:00:45]} 19. Nd4 {[%clk 0:01:54]}  Bxd4 {[%clk 0:00:41]} 20. Rxd4 {[%clk 0:01:55]}  c5 {[%clk 0:00:36]} 21. Rd2 {[%clk 0:01:53]}  Bc6 {[%clk 0:00:34]} 22. Qd1 {[%clk 0:01:48]}  d5 {[%clk 0:00:31]} 23. cxd5 {[%clk 0:01:37]}  Nxd5 {[%clk 0:00:31]} 24. Nxd5 {[%clk 0:01:33]}  Rxd5 {[%clk 0:00:32]} 25. e4 {[%clk 0:01:26]}  Rd7 {[%clk 0:00:13]} 26. exf5 {[%clk 0:01:18]}  Qxf5 {[%clk 0:00:11]} 27. Rxd7 {[%clk 0:01:17]}  Qxd7 {[%clk 0:00:12]} 28. Qxd7 {[%clk 0:01:16]}  Bxd7 {[%clk 0:00:13]} 29. Re7 {[%clk 0:01:16]}  Rf7 {[%clk 0:00:12]} 30. Re5 {[%clk 0:01:14]}  b6 {[%clk 0:00:11]} 31. Rd5 {[%clk 0:01:14]}  Bc6 {[%clk 0:00:10]} 32. Rd6 {[%clk 0:01:14]}  Be4 {[%clk 0:00:09]} 33. Kf2 {[%clk 0:01:11]}  h5 {[%clk 0:00:05]} 34. Rd8+ {[%clk 0:01:10]}  Rf8 {[%clk 0:00:05]} 35. Rd7 {[%clk 0:01:08]}  Rf7 {[%clk 0:00:04]} 36. Rd6 {[%clk 0:01:09]}  Bf5 {[%clk 0:00:03]} 37. Be5 {[%clk 0:01:06]}  Rd7 {[%clk 0:00:03]} 38. Rc6 {[%clk 0:01:02]}  Rd3 {[%clk 0:00:03]} 39. Rc7 {[%clk 0:00:55]}  Rd7 {[%clk 0:00:02]} 40. Rc8+ {[%clk 0:00:55]}  Kf7 {[%clk 0:00:01]} 41. Rh8 {[%clk 0:00:55]}  Ke6 {[%clk 0:00:02]} 42. Ra8 {[%clk 0:00:51]}  Kd5 {[%clk 0:00:03]} 43. Ke3 {[%clk 0:00:51]}  Kc6 {[%clk 0:00:03]} 44. Rc8+ {[%clk 0:00:43]}  Kb5 {[%clk 0:00:03]} 45. Rc7 {[%clk 0:00:37]}  Rd3+ {[%clk 0:00:03]} 46. Ke2 {[%clk 0:00:36]}  a5 {[%clk 0:00:03]} 47. a4+ {[%clk 0:00:35]}  Kb4 {[%clk 0:00:02]} 48. Rb7 {[%clk 0:00:36]}  Kxb3 {[%clk 0:00:02]} 49. Rxb6+ {[%clk 0:00:36]}  Kxa4 {[%clk 0:00:03]} 50. Bc7 {[%clk 0:00:34]}  Rd5 {[%clk 0:00:03]} 51. Rc6 {[%clk 0:00:33]}  Bd3+ {[%clk 0:00:01]} 52. Ke3 {[%clk 0:00:32]}  c4 {[%clk 0:00:02]} 53. Be5 {[%clk 0:00:28]} 1-0


[Site "https://www.chess.com"]

[Event "Titled Tuesday Blitz August 17 2021"]
[White "Katz, Alexander"]
[Black "Vasli, Aref"]
[WhiteFideId "2039796"]
[BlackFideId "417521"]
[WhiteElo "2371"]
[BlackElo "2257"]
[Result "0-1"]
[Round "08"]
[TimeControl "180+1"]
[Date "2021.08.17"]
[WhiteClock "0:00:11"]
[BlackClock "0:00:23"]

1. d4 {[%clk 0:03:00]}  Nf6 {[%clk 0:02:54]} 2. c4 {[%clk 0:03:00]}  e6 {[%clk 0:02:49]} 3. Nf3 {[%clk 0:02:59]}  c5 {[%clk 0:02:49]} 4. d5 {[%clk 0:02:59]}  exd5 {[%clk 0:02:50]} 5. cxd5 {[%clk 0:03:00]}  d6 {[%clk 0:02:51]} 6. Nc3 {[%clk 0:03:00]}  g6 {[%clk 0:02:51]} 7. e4 {[%clk 0:02:59]}  a6 {[%clk 0:02:51]} 8. a4 {[%clk 0:02:59]}  Bg4 {[%clk 0:02:52]} 9. Qb3 {[%clk 0:02:56]}  Bxf3 {[%clk 0:02:31]} 10. gxf3 {[%clk 0:02:54]}  Qc7 {[%clk 0:02:28]} 11. h4 {[%clk 0:02:51]}  Nbd7 {[%clk 0:02:28]} 12. Bf4 {[%clk 0:02:49]}  Nh5 {[%clk 0:02:27]} 13. Bh2 {[%clk 0:02:45]}  Bh6 {[%clk 0:02:27]} 14. Bh3 {[%clk 0:02:44]}  O-O {[%clk 0:02:24]} 15. Ne2 {[%clk 0:02:39]}  b5 {[%clk 0:02:18]} 16. f4 {[%clk 0:02:29]}  Rfe8 {[%clk 0:02:14]} 17. Qf3 {[%clk 0:02:26]}  Bg7 {[%clk 0:01:59]} 18. O-O {[%clk 0:02:15]}  b4 {[%clk 0:01:46]} 19. Rab1 {[%clk 0:02:05]}  Rad8 {[%clk 0:01:36]} 20. b3 {[%clk 0:02:03]}  Ndf6 {[%clk 0:01:28]} 21. e5 {[%clk 0:01:54]}  dxe5 {[%clk 0:01:28]} 22. fxe5 {[%clk 0:01:54]}  Nxd5 {[%clk 0:01:28]} 23. Rbd1 {[%clk 0:01:49]}  Bxe5 {[%clk 0:01:19]} 24. Rxd5 {[%clk 0:01:43]}  Bxh2+ {[%clk 0:01:19]} 25. Kh1 {[%clk 0:01:43]}  Rxd5 {[%clk 0:01:19]} 26. Qxd5 {[%clk 0:01:43]}  Rxe2 {[%clk 0:01:19]} 27. Bg4 {[%clk 0:01:38]}  Nf6 {[%clk 0:01:06]} 28. Qf3 {[%clk 0:01:32]}  Re4 {[%clk 0:00:38]} 29. Qxf6 {[%clk 0:00:54]}  Rxg4 {[%clk 0:00:37]} 30. Re1 {[%clk 0:00:55]}  Bd6 {[%clk 0:00:31]} 31. Re8+ {[%clk 0:00:29]}  Bf8 {[%clk 0:00:31]} 32. h5 {[%clk 0:00:23]}  Rf4 {[%clk 0:00:28]} 33. Qb2 {[%clk 0:00:11]}  Qc6+ {[%clk 0:00:27]} 34. Kg1 {[%clk 0:00:11]}  Rg4+ {[%clk 0:00:23]} 35. Kf1 {[%clk 0:00:11]}  Qxe8 {[%clk 0:00:23]} 0-1


[Site "https://www.chess.com"]